[Event "55th Rubinstein Memorial-A 2019"]
[Site "Polanica-Zdroj"]
[Date "2019.08.23"]
[Round "7.4"]
[White "Mikhaletz, Lubomir"]
[Black "Mis, Mieszko"]
[Result "0-1"]
[ECO "B10"]
[WhiteElo "2412"]
[BlackElo "2296"]
[Annotator "NA"]
[PlyCount "114"]
[EventDate "2019.08.17"]
[EventType "swiss"]
[EventCountry "POL"]
[SourceTitle "playchess.com"]
[Source "ChessBase"]
[SourceQuality "1"]
[TimeControl "40/5400+30:1800+30"]

1. e4 {[%emt 0:05:36]} c6 {[%emt 0:00:30]} 2. Nf3 {[%emt 0:01:09]} d5 {[%emt 0:00:28]} 3. Nc3 {[%emt 0:00:06]} Nf6 {[%emt 0:03:22]} 4. e5 {[%emt 0:03:39]} Ne4 {[%emt 0:00:05]} 5. d4 {[%emt 0:03:49]} Nxc3 {[%emt 0:04:49]} 6. bxc3 {[%emt 0:00:02]} c5 {[%emt 0:02:49]} 7. Bd3 {[%emt 0:14:48]} Nc6 {[%emt 0:07:19]} 8. h3 {[%emt 0:04:22]} e6 {[%emt 0:02:17]} 9. O-O {[%emt 0:04:03]} c4 {[%emt 0:04:15]} 10. Be2 {[%emt 0:00:05]} Qa5 {[%emt 0:00:37]} 11. Bd2 {[%emt 0:06:44]} Bd7 {[%emt 0:03:28]} 12. Qb1 {[%emt 0:06:44]} O-O-O {[%emt 0:03:11]} 13. a4 {[%emt 0:00:35]} Be7 {[%emt 0:10:56]} 14. Qb2 {[%emt 0:01:01]} h6 {[%emt 0:04:31]} 15. Rfb1 {[%emt 0:03:53]} Qc7 {[%emt 0:02:21]} 16. Bf4 {[%emt 0:02:18]} g5 {[%emt 0:08:15]} 17. Bh2 {[%emt 0:00:29]} h5 {[%emt 0:07:21]} 18. Nd2 {[%emt 0:06:03]} g4 {[%emt 0:05:00]} 19. hxg4 {[%emt 0:03:18]} hxg4 {[%emt 0:00:12]} 20. Nf1 {[%emt 0:03:05]} Rdg8 {[%emt 0:02:25]} 21. Bg3 {[%emt 0:00:47]} Bh4 {[%emt 0:03:56]} 22. Qc1 {[%emt 0:04:50]} Bxg3 {[%emt 0:01:42]} 23. fxg3 {[%emt 0:01:07]} f6 {[%emt 0:05:27]} 24. exf6 {[%emt 0:00:42]} e5 {[%emt 0:00:26]} 25. Ne3 {[%emt 0:05:28]} exd4 {[%emt 0:01:09]} 26. Nxd5 {[%emt 0:01:07]} Qd6 {[%emt 0:07:03]} 27. Rb5 {[%emt 0:01:02]} Re8 {[%emt 0:04:48]} 28. Qf4 {[%emt 0:00:38]} Qxf4 {[%emt 0:00:32]} 29. Nxf4 {[%emt 0:00:07]} Rhf8 {[%emt 0:00:48]} 30. cxd4 {[%emt 0:02:51]} Rxf6 {[%emt 0:00:22]} 31. Bxc4 {[%emt 0:05:35]} Nxd4 {[%emt 0:00:13]} 32. Rc5+ {[%emt 0:02:38]} Bc6 {[%emt 0:01:37]} 33. c3 {[%emt 0:00:54]} Nc2 {[%emt 0:02:58]} 34. Rc1 {[%emt 0:01:02]} Na3 {[%emt 0:00:58]} 35. Bb3 {[%emt 0:01:12]} b6 {[%emt 0:00:31]} 36. Rg5 {[%emt 0:00:41]} Re4 {[%emt 0:00:39]} 37. Rg7 {[%emt 0:00:46]} Bxa4 {[%emt 0:00:32]} 38. Bd5 {[%emt 0:00:15]} Re3 {[%emt 0:00:30]} 39. Kf2 {[%emt 0:00:14]} Re5 {[%emt 0:00:13]} 40. Bb7+ {[%emt 0:00:00]} Kb8 {[%emt 0:00:00]} 41. Ra1 {[%emt 0:00:36]} Bb5 {[%emt 0:06:21]} 42. Kg1 {[%emt 0:23:10]} Nc4 {[%emt 0:05:51]} 43. Bd5 {[%emt 0:01:29]} a5 {[%emt 0:03:09]} 44. Rb7+ {[%emt 0:04:29]} Kc8 {[%emt 0:00:17]} 45. Rh7 {[%emt 0:00:08]} Rd6 {[%emt 0:02:57]} 46. Bb7+ {[%emt 0:04:36]} Kb8 {[%emt 0:00:29]} 47. Rb1 {[%emt 0:00:57]} a4 {[%emt 0:00:56]} 48. Kh2 {[%emt 0:00:39]} Na5 {[%emt 0:01:13]} 49. Bd5 {[%emt 0:00:34]} Rexd5 {[%emt 0:00:28]} 50. Nxd5 {[%emt 0:01:08]} Rxd5 {[%emt 0:00:04]} 51. Re1 {[%emt 0:00:06]} Rd7 {[%emt 0:01:54]} 52. Rh4 {[%emt 0:00:09]} Rg7 {[%emt 0:01:33]} 53. Re4 {[%emt 0:00:50]} a3 {[%emt 0:00:42]} 54. Rh8+ {[%emt 0:00:17]} Kb7 {[%emt 0:00:24]} 55. Rd8 {[%emt 0:00:17]} a2 {[%emt 0:00:43]} 56. Rd1 {[%emt 0:00:07]} Nb3 {[%emt 0:00:25]} 57. Rb4 {[%emt 0:00:10]} Be2 {[%emt 0:00:32]} 0-1

[Event "55th Rubinstein Memorial-A 2019"]
[Site "Polanica-Zdroj"]
[Date "2019.08.23"]
[Round "7.5"]
[White "Domanski, Lukasz"]
[Black "Oglaza, Oskar"]
[Result "0-1"]
[ECO "B51"]
[WhiteElo "2058"]
[BlackElo "2367"]
[Annotator "NA"]
[PlyCount "43"]
[EventDate "2019.08.17"]
[EventType "swiss"]
[EventCountry "POL"]
[SourceTitle "playchess.com"]
[Source "ChessBase"]
[SourceQuality "1"]
[TimeControl "40/5400+30:1800+30"]

1. e4 {[%emt 0:00:00]} c5 {[%emt 0:00:00]} 2. Nf3 {[%emt 0:00:16]} d6 {[%emt 0:00:00]} 3. Bb5+ {[%emt 0:00:05]} Nd7 {[%emt 0:00:00]} 4. d4 {[%emt 0:00:52]} cxd4 {[%emt 0:00:00]} 5. Qxd4 {[%emt 0:00:24]} a6 {[%emt 0:00:09]} 6. Bxd7+ {[%emt 0:00:48]} Bxd7 {[%emt 0:00:11]} 7. O-O {[%emt 0:04:36]} Rc8 {[%emt 0:00:22]} 8. Nc3 {[%emt 0:01:21]} e5 {[%emt 0:00:28]} 9. Qd3 {[%emt 0:05:13]} h6 {[%emt 0:00:25]} 10. Be3 {[%emt 0:04:31]} Nf6 {[%emt 0:00:37]} 11. Rad1 {[%emt 0:11:00]} Be7 {[%emt 0:04:34]} 12. Nh4 {[%emt 0:06:27]} O-O {[%emt 0:35:15]} 13. Nf5 {[%emt 0:03:13]} Bxf5 {[%emt 0:02:27]} 14. exf5 {[%emt 0:00:06]} Qa5 {[%emt 0:00:11]} 15. Qd2 {[%emt 0:13:26]} Rfd8 {[%emt 0:07:29]} 16. Bxh6 {[%emt 0:16:24]} gxh6 {[%emt 0:00:16]} 17. Qxh6 {[%emt 0:00:50]} e4 {[%emt 0:00:10]} 18. Rfe1 {[%emt 0:02:29]} Qxf5 {[%emt 0:00:17]} 19. Re3 {[%emt 0:01:41]} Ng4 {[%emt 0:00:22]} 20. Rg3 {[%emt 0:01:56]} Qxf2+ {[%emt 0:00:05]} 21. Kh1 {[%emt 0:00:07]} Qxg3 {[%emt 0:00:03]} 22. Ra1 0-1

[Event "55th Rubinstein Memorial-A 2019"]
[Site "Polanica-Zdroj"]
[Date "2019.08.23"]
[Round "7.6"]
[White "Jaroch, Karol"]
[Black "Kozak, Antoni"]
[Result "0-1"]
[ECO "B29"]
[WhiteElo "2231"]
[BlackElo "2354"]
[Annotator "NA"]
[PlyCount "50"]
[EventDate "2019.08.17"]
[EventType "swiss"]
[EventCountry "POL"]
[SourceTitle "playchess.com"]
[Source "ChessBase"]
[SourceQuality "1"]
[TimeControl "40/5400+30:1800+30"]

1. e4 {[%emt 0:00:57]} c5 {[%emt 0:00:00]} 2. Nf3 {[%emt 0:00:09]} Nf6 {[%emt 0:00:04]} 3. Nc3 {[%emt 0:00:29]} e6 {[%emt 0:01:51]} 4. e5 {[%emt 0:05:54]} Nd5 {[%emt 0:00:06]} 5. Nxd5 {[%emt 0:02:49]} exd5 {[%emt 0:00:08]} 6. d4 {[%emt 0:03:10]} Nc6 {[%emt 0:00:06]} 7. Be2 {[%emt 0:01:30]} d6 {[%emt 0:00:32]} 8. exd6 {[%emt 0:00:47]} Bxd6 {[%emt 0:00:11]} 9. dxc5 {[%emt 0:05:08]} Bxc5 {[%emt 0:00:06]} 10. O-O {[%emt 0:00:11]} O-O {[%emt 0:00:15]} 11. c3 {[%emt 0:02:40]} Re8 {[%emt 0:02:09]} 12. Bg5 {[%emt 0:20:47]} f6 {[%emt 0:06:25]} 13. Bh4 {[%emt 0:03:09]} Bf5 {[%emt 0:00:06]} 14. Re1 {[%emt 0:05:53]} Be4 {[%emt 0:09:52]} 15. Nd2 {[%emt 0:08:10]} Bg6 {[%emt 0:00:29]} 16. Bg3 {[%emt 0:03:49]} Bf7 {[%emt 0:08:08]} 17. Nb3 {[%emt 0:02:53]} Bb6 {[%emt 0:01:39]} 18. Qd2 {[%emt 0:00:06]} a5 {[%emt 0:03:45]} 19. Bb5 {[%emt 0:02:09]} a4 {[%emt 0:03:00]} 20. Rxe8+ {[%emt 0:01:39]} Bxe8 {[%emt 0:00:03]} 21. Bxc6 {[%emt 0:03:24]} bxc6 {[%emt 0:00:08]} 22. Nd4 {[%emt 0:00:07]} Qd7 {[%emt 0:00:07]} 23. Re1 {[%emt 0:00:21]} c5 {[%emt 0:01:18]} 24. Re6 {[%emt 0:02:27]} Bc7 {[%emt 0:04:46]} 25. Qe2 {[%emt 0:03:21]} cxd4 {[%emt 0:00:26]} 0-1

[Event "55th Rubinstein Memorial-A 2019"]
[Site "Polanica-Zdroj"]
[Date "2019.08.23"]
[Round "7.7"]
[White "Mazalon, Mariusz"]
[Black "Lapaj, Mateusz"]
[Result "0-1"]
[ECO "E70"]
[WhiteElo "2012"]
[BlackElo "2233"]
[Annotator "NA"]
[PlyCount "96"]
[EventDate "2019.08.17"]
[EventType "swiss"]
[EventCountry "POL"]
[SourceTitle "playchess.com"]
[Source "ChessBase"]
[SourceQuality "1"]
[TimeControl "40/5400+30:1800+30"]

1. d4 {[%emt 0:00:00]} Nf6 {[%emt 0:03:01]} 2. c4 {[%emt 0:00:18]} g6 {[%emt 0:00:03]} 3. Nc3 {[%emt 0:00:36]} Bg7 {[%emt 0:00:03]} 4. e4 {[%emt 0:01:08]} d6 {[%emt 0:00:02]} 5. Bd3 {[%emt 0:01:28]} O-O {[%emt 0:00:10]} 6. Nge2 {[%emt 0:00:25]} e5 {[%emt 0:04:54]} 7. d5 {[%emt 0:01:47]} Nbd7 {[%emt 0:00:39]} 8. O-O {[%emt 0:00:36]} Nc5 {[%emt 0:03:20]} 9. Bc2 {[%emt 0:02:03]} a5 {[%emt 0:00:05]} 10. Bg5 {[%emt 0:08:15]} h6 {[%emt 0:02:15]} 11. Be3 {[%emt 0:00:12]} Ng4 {[%emt 0:01:55]} 12. Bd2 {[%emt 0:00:11]} f5 {[%emt 0:01:42]} 13. h3 {[%emt 0:00:36]} Nf6 {[%emt 0:05:45]} 14. exf5 {[%emt 0:03:07]} gxf5 {[%emt 0:00:29]} 15. f4 {[%emt 0:00:12]} e4 {[%emt 0:04:30]} 16. Be3 {[%emt 0:00:57]} Bd7 {[%emt 0:01:07]} 17. Qd2 {[%emt 0:01:10]} Qe8 {[%emt 0:02:05]} 18. Nd4 {[%emt 0:01:24]} Qg6 {[%emt 0:03:05]} 19. b3 {[%emt 0:07:56]} Kh7 {[%emt 0:12:33]} 20. a3 {[%emt 0:32:05]} Rg8 {[%emt 0:00:53]} 21. b4 {[%emt 0:06:37]} axb4 {[%emt 0:00:52]} 22. axb4 {[%emt 0:00:02]} Rxa1 {[%emt 0:01:59]} 23. Rxa1 {[%emt 0:00:05]} Na6 {[%emt 0:00:03]} 24. Rb1 {[%emt 0:02:59]} Nh5 {[%emt 0:01:10]} 25. g4 {[%emt 0:03:17]} Bxd4 {[%emt 0:02:02]} 26. Bxd4 {[%emt 0:01:23]} fxg4 {[%emt 0:00:29]} 27. Bxe4 {[%emt 0:02:55]} Bf5 {[%emt 0:00:18]} 28. Qc2 {[%emt 0:08:02]} gxh3+ {[%emt 0:01:51]} 29. Kh2 {[%emt 0:00:15]} Qg3+ {[%emt 0:07:13]} 30. Kh1 {[%emt 0:00:11]} Qg2+ {[%emt 0:13:17]} 31. Qxg2 {[%emt 0:09:50]} hxg2+ {[%emt 0:00:02]} 32. Kh2 {[%emt 0:00:08]} Rf8 {[%emt 0:07:36]} 33. Re1 {[%emt 0:03:53]} Bxe4 {[%emt 0:03:35]} 34. Rxe4 {[%emt 0:00:05]} Rxf4 {[%emt 0:01:11]} 35. Re7+ {[%emt 0:00:16]} Kg6 {[%emt 0:00:21]} 36. Ne2 {[%emt 0:01:30]} Rh4+ {[%emt 0:05:46]} 37. Kg1 {[%emt 0:00:37]} Nxb4 {[%emt 0:02:29]} 38. Rxc7 {[%emt 0:00:05]} Re4 {[%emt 0:00:17]} 39. Kf2 {[%emt 0:01:56]} Nd3+ {[%emt 0:00:15]} 40. Kxg2 {[%emt 0:00:00]} Rxe2+ {[%emt 0:00:00]} 41. Kf3 {[%emt 0:00:58]} Rc2 {[%emt 0:04:11]} 42. Ke3 {[%emt 0:10:46]} Nb2 {[%emt 0:13:58]} 43. Rxb7 {[%emt 0:05:34]} Nxc4+ {[%emt 0:00:25]} 44. Kd3 {[%emt 0:00:19]} Rc1 {[%emt 0:00:31]} 45. Bc3 {[%emt 0:05:08]} Ne5+ {[%emt 0:02:43]} 46. Kd2 {[%emt 0:00:20]} Rf1 {[%emt 0:00:30]} 47. Re7 {[%emt 0:00:53]} Rf5 {[%emt 0:02:41]} 48. Re6+ {[%emt 0:00:24]} Nf6 {[%emt 0:00:25]} 0-1

[Event "55th Rubinstein Memorial-A 2019"]
[Site "Polanica-Zdroj"]
[Date "2019.08.23"]
[Round "7.8"]
[White "Cukrowski, Filip"]
[Black "Praczukowski, Stanislaw"]
[Result "1-0"]
[ECO "B90"]
[WhiteElo "2424"]
[BlackElo "2126"]
[Annotator "NA"]
[PlyCount "31"]
[EventDate "2019.08.17"]
[EventType "swiss"]
[EventCountry "POL"]
[SourceTitle "playchess.com"]
[Source "ChessBase"]
[SourceQuality "1"]
[TimeControl "40/5400+30:1800+30"]

1. e4 {[%emt 0:14:29]} c5 {[%emt 0:00:00]} 2. Nf3 {[%emt 0:00:13]} d6 {[%emt 0:00:05]} 3. d4 {[%emt 0:00:06]} cxd4 {[%emt 0:00:05]} 4. Nxd4 {[%emt 0:00:06]} Nf6 {[%emt 0:00:06]} 5. Nc3 {[%emt 0:00:05]} a6 {[%emt 0:00:05]} 6. Be3 {[%emt 0:01:25]} e5 {[%emt 0:00:17]} 7. Nf3 {[%emt 0:00:07]} Be7 {[%emt 0:00:26]} 8. Bc4 {[%emt 0:00:14]} O-O {[%emt 0:01:39]} 9. O-O {[%emt 0:01:46]} Be6 {[%emt 0:01:31]} 10. Qd3 {[%emt 0:01:49]} Nc6 {[%emt 0:09:51]} 11. Bxe6 {[%emt 0:15:34]} fxe6 {[%emt 0:00:37]} 12. Ng5 {[%emt 0:00:05]} Nb4 {[%emt 0:09:50]} 13. Qc4 {[%emt 0:09:54]} d5 {[%emt 0:02:30]} 14. Qb3 {[%emt 0:00:05]} d4 {[%emt 0:17:13]} 15. Nxe6 {[%emt 0:00:26]} Qe8 {[%emt 0:01:23]} 16. Nxd4+ {[%emt 0:00:42]} 1-0

[Event "55th Rubinstein Memorial-A 2019"]
[Site "Polanica-Zdroj"]
[Date "2019.08.23"]
[Round "7.9"]
[White "Slomczewski, Michal"]
[Black "Psyk, Radoslaw"]
[Result "0-1"]
[ECO "A10"]
[WhiteElo "2115"]
[BlackElo "2326"]
[Annotator "NA"]
[PlyCount "78"]
[EventDate "2019.08.17"]
[EventType "swiss"]
[EventCountry "POL"]
[SourceTitle "playchess.com"]
[Source "ChessBase"]
[SourceQuality "1"]
[TimeControl "40/5400+30:1800+30"]

1. c4 {[%emt 0:02:31]} g6 {[%emt 0:01:18]} 2. e4 {[%emt 0:02:37]} Bg7 {[%emt 0:00:42]} 3. d4 {[%emt 0:02:17]} d6 {[%emt 0:00:46]} 4. Nc3 {[%emt 0:01:54]} Nd7 {[%emt 0:02:56]} 5. Be3 {[%emt 0:02:32]} e5 {[%emt 0:04:55]} 6. d5 {[%emt 0:00:18]} Ne7 {[%emt 0:01:44]} 7. Bd3 {[%emt 0:03:03]} O-O {[%emt 0:01:35]} 8. Nge2 {[%emt 0:00:16]} a5 {[%emt 0:07:59]} 9. O-O {[%emt 0:02:44]} f5 {[%emt 0:05:32]} 10. exf5 {[%emt 0:03:31]} Nxf5 {[%emt 0:10:31]} 11. Bxf5 {[%emt 0:23:18]} gxf5 {[%emt 0:03:03]} 12. f4 {[%emt 0:00:11]} e4 {[%emt 0:00:40]} 13. Nd4 {[%emt 0:04:14]} Nc5 {[%emt 0:01:48]} 14. Qh5 {[%emt 0:10:35]} Nd3 {[%emt 0:04:30]} 15. Rab1 {[%emt 0:07:04]} Qe8 {[%emt 0:10:16]} 16. Qxe8 {[%emt 0:09:08]} Rxe8 {[%emt 0:00:01]} 17. h3 {[%emt 0:00:22]} Kf7 {[%emt 0:04:28]} 18. Nce2 {[%emt 0:04:39]} Bd7 {[%emt 0:05:37]} 19. b3 {[%emt 0:01:28]} h5 {[%emt 0:05:06]} 20. Nc1 {[%emt 0:03:46]} Nc5 {[%emt 0:01:33]} 21. Nc2 {[%emt 0:00:48]} b6 {[%emt 0:04:24]} 22. Bd4 {[%emt 0:01:41]} Bxd4+ {[%emt 0:04:50]} 23. Nxd4 {[%emt 0:00:01]} Rg8 {[%emt 0:00:01]} 24. Kh2 {[%emt 0:03:09]} Rg6 {[%emt 0:05:17]} 25. Nce2 {[%emt 0:01:23]} Nd3 {[%emt 0:01:32]} 26. g3 {[%emt 0:02:24]} h4 {[%emt 0:04:10]} 27. gxh4 {[%emt 0:02:08]} Rh8 {[%emt 0:00:41]} 28. Ng3 {[%emt 0:02:39]} Rxh4 {[%emt 0:00:18]} 29. Ndxf5 {[%emt 0:00:39]} Rh8 {[%emt 0:00:31]} 30. Rg1 {[%emt 0:02:50]} Kf6 {[%emt 0:02:31]} 31. Nxe4+ {[%emt 0:00:15]} Kxf5 {[%emt 0:00:06]} 32. Rxg6 {[%emt 0:00:05]} Kxg6 {[%emt 0:00:20]} 33. Rg1+ {[%emt 0:01:20]} Kf5 {[%emt 0:00:13]} 34. Rg7 {[%emt 0:00:23]} Kxe4 {[%emt 0:01:25]} 35. Rxd7 {[%emt 0:00:02]} Kf3 {[%emt 0:00:50]} 36. Rg7 {[%emt 0:00:23]} Nxf4 {[%emt 0:00:25]} 37. Rg3+ {[%emt 0:00:19]} Ke4 {[%emt 0:00:13]} 38. Rc3 {[%emt 0:00:05]} Kd4 {[%emt 0:00:17]} 39. Rf3 {[%emt 0:00:06]} Rxh3+ {[%emt 0:00:18]} 0-1

[Event "55th Rubinstein Memorial-A 2019"]
[Site "Polanica-Zdroj"]
[Date "2019.08.23"]
[Round "7.10"]
[White "Kucza, Karol"]
[Black "Szczurek, Krzysztof"]
[Result "1-0"]
[ECO "B09"]
[WhiteElo "2296"]
[BlackElo "2112"]
[Annotator "NA"]
[PlyCount "67"]
[EventDate "2019.08.17"]
[EventType "swiss"]
[EventCountry "POL"]
[SourceTitle "playchess.com"]
[Source "ChessBase"]
[SourceQuality "1"]
[TimeControl "40/5400+30:1800+30"]

1. e4 {[%emt 0:00:00]} g6 {[%emt 0:00:00]} 2. d4 {[%emt 0:00:00]} Bg7 {[%emt 0:00:00]} 3. Nc3 {[%emt 0:00:00]} d6 {[%emt 0:00:00]} 4. f4 {[%emt 0:00:00]} Nf6 {[%emt 0:00:04]} 5. Nf3 {[%emt 0:00:00]} O-O {[%emt 0:00:13]} 6. Bd3 {[%emt 0:00:00]} c5 {[%emt 0:00:17]} 7. dxc5 {[%emt 0:02:51]} dxc5 {[%emt 0:00:21]} 8. e5 {[%emt 0:00:07]} Nd5 {[%emt 0:01:29]} 9. Qe2 {[%emt 0:04:12]} Nxc3 {[%emt 0:03:32]} 10. bxc3 {[%emt 0:00:06]} Nc6 {[%emt 0:00:06]} 11. O-O {[%emt 0:00:55]} Qc7 {[%emt 0:02:58]} 12. Bd2 {[%emt 0:12:57]} f6 {[%emt 0:04:10]} 13. Rae1 {[%emt 0:16:50]} Kh8 {[%emt 0:28:43]} 14. e6 {[%emt 0:14:57]} f5 {[%emt 0:00:26]} 15. Ng5 {[%emt 0:00:06]} h6 {[%emt 0:01:36]} 16. Nf7+ {[%emt 0:02:21]} Kg8 {[%emt 0:04:24]} 17. g4 {[%emt 0:00:45]} Nd8 {[%emt 0:02:30]} 18. gxf5 {[%emt 0:02:25]} gxf5 {[%emt 0:00:17]} 19. Bxf5 {[%emt 0:15:47]} Nxf7 {[%emt 0:00:59]} 20. exf7+ {[%emt 0:00:06]} Rxf7 {[%emt 0:00:11]} 21. Bg6 {[%emt 0:00:05]} Rf6 {[%emt 0:06:34]} 22. f5 {[%emt 0:00:05]} e5 {[%emt 0:00:06]} 23. Qh5 {[%emt 0:01:34]} Qd6 {[%emt 0:01:14]} 24. Rd1 {[%emt 0:04:22]} Qf8 {[%emt 0:00:24]} 25. Bg5 {[%emt 0:02:02]} b6 {[%emt 0:02:34]} 26. Bxf6 {[%emt 0:00:14]} Bxf6 {[%emt 0:00:15]} 27. Qf3 {[%emt 0:02:27]} Ba6 {[%emt 0:00:07]} 28. Rd7 {[%emt 0:00:26]} Bc4 {[%emt 0:01:57]} 29. Rfd1 {[%emt 0:05:05]} e4 {[%emt 0:01:27]} 30. Qxe4 {[%emt 0:00:20]} b5 {[%emt 0:00:05]} 31. R1d6 {[%emt 0:05:43]} Bxc3 {[%emt 0:01:12]} 32. f6 {[%emt 0:05:41]} Bd4+ {[%emt 0:02:40]} 33. Rxd4 {[%emt 0:00:53]} cxd4 {[%emt 0:00:07]} 34. Qxd4 {[%emt 0:02:31]} 1-0

[Event "55th Rubinstein Memorial-A 2019"]
[Site "Polanica-Zdroj"]
[Date "2019.08.23"]
[Round "7.11"]
[White "Jaskolka, Tomasz"]
[Black "Kaczmarek, Arkadiusz"]
[Result "1-0"]
[ECO "D44"]
[WhiteElo "2227"]
[BlackElo "1986"]
[Annotator "NA"]
[PlyCount "61"]
[EventDate "2019.08.17"]
[EventType "swiss"]
[EventCountry "POL"]
[SourceTitle "playchess.com"]
[Source "ChessBase"]
[SourceQuality "1"]
[TimeControl "40/5400+30:1800+30"]

1. d4 {[%emt 0:00:00]} d5 {[%emt 0:00:00]} 2. c4 {[%emt 0:00:00]} c6 {[%emt 0:00:00]} 3. Nc3 {[%emt 0:00:06]} Nf6 {[%emt 0:00:09]} 4. Nf3 {[%emt 0:00:11]} e6 {[%emt 0:00:14]} 5. Bg5 {[%emt 0:00:54]} dxc4 {[%emt 0:00:14]} 6. e4 {[%emt 0:01:44]} b5 {[%emt 0:00:11]} 7. e5 {[%emt 0:00:35]} h6 {[%emt 0:00:13]} 8. Bh4 {[%emt 0:00:06]} g5 {[%emt 0:00:16]} 9. Bg3 {[%emt 0:00:25]} Nd5 {[%emt 0:00:27]} 10. Nd2 {[%emt 0:02:07]} Bb7 {[%emt 0:03:44]} 11. Be2 {[%emt 0:00:26]} Nd7 {[%emt 0:01:55]} 12. a4 {[%emt 0:00:52]} a6 {[%emt 0:05:19]} 13. Nde4 {[%emt 0:01:19]} Nxc3 {[%emt 0:03:45]} 14. Nxc3 {[%emt 0:05:46]} b4 {[%emt 0:29:49]} 15. Ne4 {[%emt 0:17:22]} c5 {[%emt 0:00:22]} 16. Bf3 {[%emt 0:02:12]} Qb6 {[%emt 0:06:07]} 17. a5 {[%emt 0:46:38]} Qb5 {[%emt 0:07:49]} 18. d5 {[%emt 0:00:31]} exd5 {[%emt 0:01:37]} 19. Nf6+ {[%emt 0:02:02]} Nxf6 {[%emt 0:24:33]} 20. exf6 {[%emt 0:00:04]} Qc6 {[%emt 0:00:17]} 21. O-O {[%emt 0:00:21]} Kd7 {[%emt 0:04:23]} 22. Re1 {[%emt 0:07:04]} Re8 {[%emt 0:00:43]} 23. Bg4+ {[%emt 0:02:35]} Kd8 {[%emt 0:00:37]} 24. Rxe8+ {[%emt 0:04:04]} Qxe8 {[%emt 0:00:41]} 25. Qf3 {[%emt 0:00:45]} Qc6 {[%emt 0:03:08]} 26. Qe2 {[%emt 0:03:43]} Qxf6 {[%emt 0:03:52]} 27. Be5 {[%emt 0:00:22]} Qe7 {[%emt 0:00:01]} 28. Bxh8 {[%emt 0:00:13]} f6 {[%emt 0:01:48]} 29. Qf3 {[%emt 0:00:52]} d4 {[%emt 0:01:19]} 30. Qf5 {[%emt 0:00:56]} Qe4 {[%emt 0:00:55]} 31. Qd7# {[%emt 0:00:08]} 1-0

[Event "55th Rubinstein Memorial-A 2019"]
[Site "Polanica-Zdroj"]
[Date "2019.08.23"]
[Round "7.12"]
[White "Lukasiewicz, Krzysztof"]
[Black "Rosicki, Marcin"]
[Result "1/2-1/2"]
[ECO "C50"]
[WhiteElo "2185"]
[BlackElo "2042"]
[Annotator "NA"]
[PlyCount "149"]
[EventDate "2019.08.17"]
[EventType "swiss"]
[EventCountry "POL"]
[SourceTitle "playchess.com"]
[Source "ChessBase"]
[SourceQuality "1"]
[TimeControl "40/5400+30:1800+30"]

1. e4 {[%emt 0:00:00]} e5 {[%emt 0:03:27]} 2. Nf3 {[%emt 0:00:00]} Nc6 {[%emt 0:00:36]} 3. Bc4 {[%emt 0:00:00]} Nf6 {[%emt 0:00:06]} 4. d3 {[%emt 0:00:00]} Bc5 {[%emt 0:00:05]} 5. O-O {[%emt 0:00:00]} d6 {[%emt 0:00:04]} 6. c3 {[%emt 0:00:00]} h6 {[%emt 0:00:50]} 7. Nbd2 {[%emt 0:00:07]} O-O {[%emt 0:00:06]} 8. Bb3 {[%emt 0:00:20]} a5 {[%emt 0:00:07]} 9. Re1 {[%emt 0:02:25]} Re8 {[%emt 0:02:38]} 10. Nf1 {[%emt 0:02:38]} Be6 {[%emt 0:00:05]} 11. Ng3 {[%emt 0:01:47]} d5 {[%emt 0:11:46]} 12. exd5 {[%emt 0:10:12]} Bxd5 {[%emt 0:04:17]} 13. Bc2 {[%emt 0:03:48]} Ng4 {[%emt 0:14:25]} 14. Rf1 Nf6 {[%emt 0:00:54]} 15. Qe2 {[%emt 0:12:44]} Qe7 {[%emt 0:08:09]} 16. Nd2 {[%emt 0:09:43]} b5 {[%emt 0:07:30]} 17. Re1 {[%emt 0:07:05]} Rab8 {[%emt 0:01:18]} 18. h3 {[%emt 0:02:20]} Ba7 {[%emt 0:05:22]} 19. Nf3 {[%emt 0:04:19]} Qd7 {[%emt 0:09:03]} 20. Nh4 {[%emt 0:05:18]} Be6 {[%emt 0:04:58]} 21. Bd2 {[%emt 0:09:32]} Rbd8 {[%emt 0:05:40]} 22. Nh5 {[%emt 0:06:13]} Qe7 {[%emt 0:05:33]} 23. Rf1 {[%emt 0:02:30]} e4 {[%emt 0:04:32]} 24. d4 {[%emt 0:04:59]} Nxh5 {[%emt 0:00:23]} 25. Qxe4 {[%emt 0:03:56]} f5 {[%emt 0:03:08]} 26. Nxf5 {[%emt 0:00:41]} Bxf5 {[%emt 0:00:05]} 27. Qxf5 {[%emt 0:00:04]} Nf6 {[%emt 0:00:06]} 28. Qg6 {[%emt 0:02:03]} Kf8 {[%emt 0:04:20]} 29. Bb3 {[%emt 0:02:10]} a4 {[%emt 0:01:02]} 30. Rfe1 {[%emt 0:00:10]} Qd7 {[%emt 0:00:06]} 31. Bxh6 {[%emt 0:01:50]} axb3 {[%emt 0:00:27]} 32. Qxf6+ {[%emt 0:00:04]} Kg8 {[%emt 0:00:20]} 33. Bxg7 {[%emt 0:00:13]} Qxg7 {[%emt 0:03:42]} 34. Qxc6 {[%emt 0:01:04]} Rxe1+ {[%emt 0:00:18]} 35. Rxe1 {[%emt 0:00:04]} bxa2 {[%emt 0:00:08]} 36. Qa6 {[%emt 0:00:15]} Bb6 {[%emt 0:00:30]} 37. Qxa2+ {[%emt 0:00:05]} Qf7 {[%emt 0:00:08]} 38. Qa6 {[%emt 0:01:20]} Rf8 {[%emt 0:01:07]} 39. f3 {[%emt 0:00:17]} Re8 {[%emt 0:01:26]} 40. Rxe8+ {[%emt 0:00:00]} Qxe8 {[%emt 0:00:00]} 41. Kf2 {[%emt 0:08:46]} Qc6 {[%emt 0:09:14]} 42. Qc8+ {[%emt 0:00:39]} Kg7 {[%emt 0:00:13]} 43. Qg4+ {[%emt 0:00:19]} Kf7 {[%emt 0:01:10]} 44. Qf5+ {[%emt 0:00:19]} Kg7 {[%emt 0:00:15]} 45. Ke3 {[%emt 0:05:10]} b4 {[%emt 0:02:56]} 46. Kd3 {[%emt 0:01:34]} bxc3 {[%emt 0:00:07]} 47. bxc3 {[%emt 0:00:04]} Qa4 {[%emt 0:00:32]} 48. Qg5+ {[%emt 0:02:33]} Kf7 {[%emt 0:00:19]} 49. Qh5+ {[%emt 0:00:37]} Kg7 {[%emt 0:00:14]} 50. f4 {[%emt 0:02:01]} Qa1 {[%emt 0:02:48]} 51. Qg4+ {[%emt 0:01:41]} Kf6 {[%emt 0:03:40]} 52. Qg5+ {[%emt 0:00:05]} Kf7 {[%emt 0:00:04]} 53. Qf5+ {[%emt 0:00:04]} Kg7 {[%emt 0:00:30]} 54. Qd7+ {[%emt 0:01:26]} Kf6 {[%emt 0:00:06]} 55. Qc6+ {[%emt 0:00:03]} Kf5 {[%emt 0:08:05]} 56. Qf3 {[%emt 0:06:09]} Qb1+ {[%emt 0:02:36]} 57. Ke2 {[%emt 0:00:04]} Qc2+ {[%emt 0:00:14]} 58. Kf1 {[%emt 0:00:05]} Qc1+ {[%emt 0:00:13]} 59. Kf2 {[%emt 0:00:03]} Qd2+ {[%emt 0:02:42]} 60. Kg3 {[%emt 0:00:27]} Qe1+ {[%emt 0:00:07]} 61. Kh2 {[%emt 0:00:03]} Qd2 {[%emt 0:00:13]} 62. Qd5+ {[%emt 0:01:46]} Kf6 {[%emt 0:00:42]} 63. Qe5+ {[%emt 0:00:03]} Kg6 {[%emt 0:00:06]} 64. f5+ {[%emt 0:07:21]} Kf7 {[%emt 0:04:06]} 65. h4 {[%emt 0:00:54]} Qxc3 {[%emt 0:00:39]} 66. Qe6+ {[%emt 0:00:40]} Kf8 {[%emt 0:00:04]} 67. Qf6+ {[%emt 0:02:29]} Ke8 {[%emt 0:00:32]} 68. Qg6+ {[%emt 0:01:37]} Kd7 {[%emt 0:00:36]} 69. Qe6+ {[%emt 0:01:52]} Kd8 {[%emt 0:00:04]} 70. f6 {[%emt 0:02:24]} Bxd4 {[%emt 0:00:14]} 71. Qg8+ {[%emt 0:00:33]} Kd7 {[%emt 0:00:07]} 72. Qg4+ {[%emt 0:00:04]} Ke8 {[%emt 0:00:29]} 73. Qg6+ {[%emt 0:01:04]} Kd8 {[%emt 0:00:55]} 74. Qg8+ {[%emt 0:01:51]} Kd7 {[%emt 0:00:07]} 75. Qg4+ {[%emt 0:00:40]} 1/2-1/2